{"text_format":"3","workbook":"xlsx","n_sheets":4,"sheets":["Старт","Сватбен бюджет","Облекло-Тържество-Музика-Снимки","Декорация-цветя-подаръци-път"],"not_rendered":{"charts":1,"defined_names":22},"read":"whole","date_system":"1900"}

{"sheet":"Старт","index":0,"n_rows":7,"n_cols":2,"rows_kept":7}
[null,"ЗА ТОЗИ ШАБЛОН"]
[null,"Използвайте този шаблон, за да следите сватбените си разходи."]
[null,"Въведете очакван и действителен разходи от различни категории в отделни работни листове."]
[null,"Резюме на сватбения бюджет и диаграмата се актуализират автоматично."]
[null,"Забележка: "]
[null,"Допълнителни инструкции са предоставени в колона A във всеки работен лист. Този текст е скрит нарочно. За да премахнете текста, изберете колона А, след което изберете DELETE. За да покажете текст, изберете колона A, след което променете цвета на шрифта."]
[null,"За да научите повече за таблиците, натиснете SHIFT и след това F10 в таблица, изберете опцията ТАБЛИЦА, след което изберете АЛТЕРНАТИВЕН ТЕКСТ."]

{"sheet":"Сватбен бюджет","index":1,"n_rows":19,"n_cols":6,"rows_kept":19,"merged":[[2,2,4,5],[18,2,42,5]]}
["Създайте сватбен бюджет в този работен лист. Въведете данни в таблиците в работния лист \"Облекло-Тържество-Музика-Снимки\" и работния лист \"Декорация-цветя-подаръци-път\", за да актуализирате резюмето и диаграмата в текущия работен лист. Полезни инструкции как да използвате този работен лист, можете да намерите в клетките в тази колона. Етикетът за \"Дата на сватбата\" е в клетка C1.",null,"Дата на сватбата:"]
["Въведете дата на сватбата в клетка C2. Оставащи дни се изчисляват автоматично в клетка E2.",null,{"$f":"TODAY()+365","v":"2019-12-04"},"Оставащи дни:",{"$f":"C2-TODAY()","v":365}]
["Заглавието на този работен лист е в клетка C3. Следващата инструкция е в клетка A6.",null,"Резюме на сватбения бюджет"]
[]
[]
["Таблицата \"Резюме бюджета\", която започва от клетка C6, се актуализира автоматично. Следващата инструкция е в клетка A19.",null,"КАТЕГОРИЯ","ОЧАКВАН","ДЕЙСТВИТЕЛЕН","НАД/ПОД"]
[null,null,"Облекло",{"$f":"Облекло_Общо_Очаквани","v":{"v":9490,"d":"9,490.00"}},{"$f":"Облекло_Общо_Действителни","v":{"v":9770,"d":"9,770.00"}},{"$f":"РезюмеБюджет[[#This Row],[ОЧАКВАН]]-РезюмеБюджет[[#This Row],[ДЕЙСТВИТЕЛЕН]]","v":{"v":-280,"d":"-280.00"}}]
[null,null,"Тържество в ресторанта",{"$f":"Тържество_Общо_Очаквани","v":{"v":1050,"d":"1,050.00"}},{"$f":"Тържество_Общо_Действителни","v":{"v":928,"d":"928.00"}},{"$f":"РезюмеБюджет[[#This Row],[ОЧАКВАН]]-РезюмеБюджет[[#This Row],[ДЕЙСТВИТЕЛЕН]]","v":{"v":122,"d":"122.00"}}]
[null,null,"Музика",{"$f":"Музика_Развлечения_Общо_Очаквани","v":{"v":600,"d":"600.00"}},{"$f":"Музика_Развлечения_Общо_Действителни","v":{"v":400,"d":"400.00"}},{"$f":"РезюмеБюджет[[#This Row],[ОЧАКВАН]]-РезюмеБюджет[[#This Row],[ДЕЙСТВИТЕЛЕН]]","v":{"v":200,"d":"200.00"}}]
[null,null,"Печат",{"$f":"Печат__Канцеларски_Общо_Очаквани","v":{"v":935,"d":"935.00"}},{"$f":"Печат__Канцеларски_Общо_Действителни","v":{"v":870,"d":"870.00"}},{"$f":"РезюмеБюджет[[#This Row],[ОЧАКВАН]]-РезюмеБюджет[[#This Row],[ДЕЙСТВИТЕЛЕН]]","v":{"v":65,"d":"65.00"}}]
[null,null,"Снимки и видео",{"$f":"Снимки_Видео_Общо_Очаквани","v":{"v":1625,"d":"1,625.00"}},{"$f":"Снимки_Видео_Общо_Действителни","v":{"v":1575,"d":"1,575.00"}},{"$f":"РезюмеБюджет[[#This Row],[ОЧАКВАН]]-РезюмеБюджет[[#This Row],[ДЕЙСТВИТЕЛЕН]]","v":{"v":50,"d":"50.00"}}]
[null,null,"Украса",{"$f":"Украса_Общо_Очаквани","v":{"v":700,"d":"700.00"}},{"$f":"Украса_Общо_Действителни","v":{"v":720,"d":"720.00"}},{"$f":"РезюмеБюджет[[#This Row],[ОЧАКВАН]]-РезюмеБюджет[[#This Row],[ДЕЙСТВИТЕЛЕН]]","v":{"v":-20,"d":"-20.00"}}]
[null,null,"Цветя",{"$f":"Цветя_Общо_Очаквани","v":{"v":900,"d":"900.00"}},{"$f":"Цветя_Общо_Действителни","v":{"v":850,"d":"850.00"}},{"$f":"РезюмеБюджет[[#This Row],[ОЧАКВАН]]-РезюмеБюджет[[#This Row],[ДЕЙСТВИТЕЛЕН]]","v":{"v":50,"d":"50.00"}}]
[null,null,"Подаръци",{"$f":"Подаръци_Общо_Очаквани","v":{"v":1345,"d":"1,345.00"}},{"$f":"Подаръци_Общо_Действителни","v":{"v":1075,"d":"1,075.00"}},{"$f":"РезюмеБюджет[[#This Row],[ОЧАКВАН]]-РезюмеБюджет[[#This Row],[ДЕЙСТВИТЕЛЕН]]","v":{"v":270,"d":"270.00"}}]
[null,null,"Пътувания",{"$f":"Пътувания_Транспорт_Общо_Очаквани","v":{"v":100,"d":"100.00"}},{"$f":"Пътувания_Транспорт_Общо_Действителни","v":{"v":165,"d":"165.00"}},{"$f":"РезюмеБюджет[[#This Row],[ОЧАКВАН]]-РезюмеБюджет[[#This Row],[ДЕЙСТВИТЕЛЕН]]","v":{"v":-65,"d":"-65.00"}}]
[null,null,"Други",{"$f":"Други_Разходи_Общо_Очаквани","v":{"v":885,"d":"885.00"}},{"$f":"Други_Разходи_Общо_Действителни","v":{"v":1021,"d":"1,021.00"}},{"$f":"РезюмеБюджет[[#This Row],[ОЧАКВАН]]-РезюмеБюджет[[#This Row],[ДЕЙСТВИТЕЛЕН]]","v":{"v":-136,"d":"-136.00"}}]
[null,null,"Общо разходи",{"$f":"SUBTOTAL(109,РезюмеБюджет[ОЧАКВАН])","v":{"v":17630,"d":"17,630.00"}},{"$f":"SUBTOTAL(109,РезюмеБюджет[ДЕЙСТВИТЕЛЕН])","v":{"v":17374,"d":"17,374.00"}},{"$f":"SUBTOTAL(109,РезюмеБюджет[НАД/ПОД])","v":{"v":256,"d":"256.00"}}]
["Кръговата диаграма в клетка C19 се актуализира автоматично."]
[null,null,"Кръговата диаграма, показваща процента разходи за всяка категория, е в тази клетка."]

{"sheet":"Облекло-Тържество-Музика-Снимки","index":2,"n_rows":56,"n_cols":6,"rows_kept":56,"merged":[[16,1,16,4],[28,1,28,4],[29,1,29,4],[35,1,35,4],[48,1,48,4]]}
["Въведете очакван и действителен разходи за всяка категория в съответните таблици в този работен лист. Сумата над или под се изчислява автоматично. Етикетът за облекло в клетката вдясно. Полезни инструкции как да използвате този работен лист, можете да намерите в клетките в тази колона. Натиснете стрелката надолу, за да започнете.","Облекло",{"$nulls":3}," "]
[" Въведете подробности в таблицата \"Облекло\", като започнете от клетката вдясно. Следващата инструкция е в клетка A18.","КАТЕГОРИЯ","ОЧАКВАН","ДЕЙСТВИТЕЛЕН","НАД/ПОД"," "]
[null,"Годежни пръстени",{"v":1500,"d":"1,500.00"},{"v":1500,"d":"1,500.00"},{"$f":"'Облекло-Тържество-Музика-Снимки'!$C3-'Облекло-Тържество-Музика-Снимки'!$D3","v":{"v":0,"d":"0.00"}}]
[null,"Булка пръстен",{"v":2000,"d":"2,000.00"},{"v":2300,"d":"2,300.00"},{"$f":"'Облекло-Тържество-Музика-Снимки'!$C4-'Облекло-Тържество-Музика-Снимки'!$D4","v":{"v":-300,"d":"-300.00 "}}]
[null,"Булка рокля",{"v":3000,"d":"3,000.00"},{"v":2750,"d":"2,750.00"},{"$f":"'Облекло-Тържество-Музика-Снимки'!$C5-'Облекло-Тържество-Музика-Снимки'!$D5","v":{"v":250,"d":"250.00"}}]
[null,"Булка воал/украса за косата",{"v":500,"d":"500.00"},{"v":500,"d":"500.00"},{"$f":"'Облекло-Тържество-Музика-Снимки'!$C6-'Облекло-Тържество-Музика-Снимки'!$D6","v":{"v":0,"d":"0.00"}}]
[null,"Булка обувки",{"v":350,"d":"350.00"},{"v":300,"d":"300.00"},{"$f":"'Облекло-Тържество-Музика-Снимки'!$C7-'Облекло-Тържество-Музика-Снимки'!$D7","v":{"v":50,"d":"50.00"}}]
[null,"Булка бижута",{"v":400,"d":"400.00"},{"v":550,"d":"550.00"},{"$f":"'Облекло-Тържество-Музика-Снимки'!$C8-'Облекло-Тържество-Музика-Снимки'!$D8","v":{"v":-150,"d":"-150.00 "}}]
[null,"Булка чорапи",{"v":20,"d":"20.00"},{"v":20,"d":"20.00"},{"$f":"'Облекло-Тържество-Музика-Снимки'!$C9-'Облекло-Тържество-Музика-Снимки'!$D9","v":{"v":0,"d":"0.00"}}]
[null,"Младоженец пръстен",{"v":300,"d":"300.00"},{"v":250,"d":"250.00"},{"$f":"'Облекло-Тържество-Музика-Снимки'!$C10-'Облекло-Тържество-Музика-Снимки'!$D10","v":{"v":50,"d":"50.00"}}]
[null,"Младоженец смокинг",{"v":300,"d":"300.00"},{"v":350,"d":"350.00"},{"$f":"'Облекло-Тържество-Музика-Снимки'!$C11-'Облекло-Тържество-Музика-Снимки'!$D11","v":{"v":-50,"d":"-50.00 "}}]
[null,"Младоженец украса за косата",{"v":500,"d":"500.00"},{"v":500,"d":"500.00"},{"$f":"'Облекло-Тържество-Музика-Снимки'!$C12-'Облекло-Тържество-Музика-Снимки'!$D12","v":{"v":0,"d":"0.00"}}]
[null,"Младоженец обувки",{"v":200,"d":"200.00"},{"v":175,"d":"175.00"},{"$f":"'Облекло-Тържество-Музика-Снимки'!$C13-'Облекло-Тържество-Музика-Снимки'!$D13","v":{"v":25,"d":"25.00"}}]
[null,"Младоженец бижута",{"v":400,"d":"400.00"},{"v":550,"d":"550.00"},{"$f":"'Облекло-Тържество-Музика-Снимки'!$C14-'Облекло-Тържество-Музика-Снимки'!$D14","v":{"v":-150,"d":"-150.00 "}}]
[null,"Младоженец чорапи",{"v":20,"d":"20.00"},{"v":25,"d":"25.00"},{"$f":"'Облекло-Тържество-Музика-Снимки'!$C15-'Облекло-Тържество-Музика-Снимки'!$D15","v":{"v":-5,"d":"-5.00 "}}]
[null,"Общо за облекло",{"$f":"SUBTOTAL(109,Облекло[ОЧАКВАН])","v":{"v":9490,"d":"9,490.00"}},{"$f":"SUBTOTAL(109,Облекло[ДЕЙСТВИТЕЛЕН])","v":{"v":9770,"d":"9,770.00"}},{"$f":"SUBTOTAL(109,Облекло[НАД/ПОД])","v":{"v":-280,"d":"-280.00 "}}]
[]
["Етикетът за \"Тържество в ресторанта\" е в клетката вдясно.","Тържество в ресторанта*"]
["Въведете разходите за тържество в ресторанта, като изключите разходите за развлечения и украса, в таблицата, започвайки от клетката вдясно. Следващата инструкция е в клетка A31.","КАТЕГОРИЯ","ОЧАКВАН","ДЕЙСТВИТЕЛЕН","НАД/ПОД"]
[null,"Наем за залата/ресторанта",{"v":200,"d":"200.00"},{"v":150,"d":"150.00"},{"$f":"'Облекло-Тържество-Музика-Снимки'!$C20-'Облекло-Тържество-Музика-Снимки'!$D20","v":{"v":50,"d":"50.00"}}]
[null,"Маси и столове",{"v":100,"d":"100.00"},{"v":50,"d":"50.00"},{"$f":"'Облекло-Тържество-Музика-Снимки'!$C21-'Облекло-Тържество-Музика-Снимки'!$D21","v":{"v":50,"d":"50.00"}}]
[null,"Храна",{"v":0,"d":"0.00"},{"v":0,"d":"0.00"},{"$f":"'Облекло-Тържество-Музика-Снимки'!$C22-'Облекло-Тържество-Музика-Снимки'!$D22","v":{"v":0,"d":"0.00"}}]
[null,"Напитки",{"v":0,"d":"0.00"},{"v":0,"d":"0.00"},{"$f":"'Облекло-Тържество-Музика-Снимки'!$C23-'Облекло-Тържество-Музика-Снимки'!$D23","v":{"v":0,"d":"0.00"}}]
[null,"Покривки",{"v":0,"d":"0.00"},{"v":0,"d":"0.00"},{"$f":"'Облекло-Тържество-Музика-Снимки'!$C24-'Облекло-Тържество-Музика-Снимки'!$D24","v":{"v":0,"d":"0.00"}}]
[null,"Торта",{"v":700,"d":"700.00"},{"v":700,"d":"700.00"},{"$f":"'Облекло-Тържество-Музика-Снимки'!$C25-'Облекло-Тържество-Музика-Снимки'!$D25","v":{"v":0,"d":"0.00"}}]
[null,"Услуги",{"v":50,"d":"50.00"},{"v":28,"d":"28.00"},{"$f":"'Облекло-Тържество-Музика-Снимки'!$C26-'Облекло-Тържество-Музика-Снимки'!$D26","v":{"v":22,"d":"22.00"}}]
[null,"Персонал и бакшиш",{"v":0,"d":"0.00"},{"v":0,"d":"0.00"},{"$f":"'Облекло-Тържество-Музика-Снимки'!$C27-'Облекло-Тържество-Музика-Снимки'!$D27","v":{"v":0,"d":"0.00"}}]
[null,"Общо за тържеството в ресторанта",{"$f":"SUBTOTAL(109,ТържествоВРесторанта[ОЧАКВАН])","v":{"v":1050,"d":"1,050.00"}},{"$f":"SUBTOTAL(109,ТържествоВРесторанта[ДЕЙСТВИТЕЛЕН])","v":{"v":928,"d":"928.00"}},{"$f":"SUBTOTAL(109,ТържествоВРесторанта[НАД/ПОД])","v":{"v":122,"d":"122.00"}}]
[null,"* Без развлеченията и украсата"]
[]
["Етикетът за \"Музика или развлечения\" е в клетката вдясно.","Музика/развлечения"]
["Въведете подробности в таблицата \"Музика\", като започнете от клетката вдясно. Следващата инструкция е в клетка A37.","КАТЕГОРИЯ","ОЧАКВАН","ДЕЙСТВИТЕЛЕН","НАД/ПОД"]
[null,"Музиканти за церемонията",{"v":400,"d":"400.00"},{"v":400,"d":"400.00"},{"$f":"'Облекло-Тържество-Музика-Снимки'!$C33-'Облекло-Тържество-Музика-Снимки'!$D33","v":{"v":0,"d":"0.00"}}]
[null,"Групата/DJ за тържеството в ресторанта",{"v":200,"d":"200.00"},{"v":0,"d":"0.00"},{"$f":"'Облекло-Тържество-Музика-Снимки'!$C34-'Облекло-Тържество-Музика-Снимки'!$D34","v":{"v":200,"d":"200.00"}}]
[null,"Общо за музика/развлечения",{"$f":"SUBTOTAL(109,Музика[ОЧАКВАН])","v":{"v":600,"d":"600.00"}},{"$f":"SUBTOTAL(109,Музика[ДЕЙСТВИТЕЛЕН])","v":{"v":400,"d":"400.00"}},{"$f":"SUBTOTAL(109,Музика[НАД/ПОД])","v":{"v":200,"d":"200.00"}}]
[]
["Етикетът за \"Печат/канцеларски материали\" е в клетката вдясно.","Печат/канцеларски материали"]
["Въведете подробности в таблицата \"Печат\", като започнете от клетката вдясно. Следващата инструкция е в клетка A50.","КАТЕГОРИЯ","ОЧАКВАН","ДЕЙСТВИТЕЛЕН","НАД/ПОД"]
[null,"Покани",{"v":500,"d":"500.00"},{"v":450,"d":"450.00"},{"$f":"'Облекло-Тържество-Музика-Снимки'!$C39-'Облекло-Тържество-Музика-Снимки'!$D39","v":{"v":50,"d":"50.00"}}]
[null,"Обявления",{"v":200,"d":"200.00"},{"v":175,"d":"175.00"},{"$f":"'Облекло-Тържество-Музика-Снимки'!$C40-'Облекло-Тържество-Музика-Снимки'!$D40","v":{"v":25,"d":"25.00"}}]
[null,"Благодарствени картички",{"v":100,"d":"100.00"},{"v":100,"d":"100.00"},{"$f":"'Облекло-Тържество-Музика-Снимки'!$C41-'Облекло-Тържество-Музика-Снимки'!$D41","v":{"v":0,"d":"0.00"}}]
[null,"Персонализирани канцеларски материали ",{"v":0,"d":"0.00"},{"v":0,"d":"0.00"},{"$f":"'Облекло-Тържество-Музика-Снимки'!$C42-'Облекло-Тържество-Музика-Снимки'!$D42","v":{"v":0,"d":"0.00"}}]
[null,"Книга за гости",{"v":25,"d":"25.00"},{"v":25,"d":"25.00"},{"$f":"'Облекло-Тържество-Музика-Снимки'!$C43-'Облекло-Тържество-Музика-Снимки'!$D43","v":{"v":0,"d":"0.00"}}]
[null,"Програми",{"v":75,"d":"75.00"},{"v":80,"d":"80.00"},{"$f":"'Облекло-Тържество-Музика-Снимки'!$C44-'Облекло-Тържество-Музика-Снимки'!$D44","v":{"v":-5,"d":"-5.00 "}}]
[null,"Салфетки за тържеството в ресторанта",{"v":35,"d":"35.00"},{"v":40,"d":"40.00"},{"$f":"'Облекло-Тържество-Музика-Снимки'!$C45-'Облекло-Тържество-Музика-Снимки'!$D45","v":{"v":-5,"d":"-5.00 "}}]
[null,"Кибрит",{"v":0,"d":"0.00"},{"v":0,"d":"0.00"},{"$f":"'Облекло-Тържество-Музика-Снимки'!$C46-'Облекло-Тържество-Музика-Снимки'!$D46","v":{"v":0,"d":"0.00"}}]
[null,"Калиграфия",{"v":0,"d":"0.00"},{"v":0,"d":"0.00"},{"$f":"'Облекло-Тържество-Музика-Снимки'!$C47-'Облекло-Тържество-Музика-Снимки'!$D47","v":{"v":0,"d":"0.00"}}]
[null,"Общо за печат/канцеларски материали",{"$f":"SUBTOTAL(109,Печат[ОЧАКВАН])","v":{"v":935,"d":"935.00"}},{"$f":"SUBTOTAL(109,Печат[ДЕЙСТВИТЕЛЕН])","v":{"v":870,"d":"870.00"}},{"$f":"SUBTOTAL(109,Печат[НАД/ПОД])","v":{"v":65,"d":"65.00"}}]
[]
["Етикетът за \"Снимки и видео\" е в клетката вдясно.","Снимки и видео"]
["Въведете подробности в таблицата \"Photography\", като започнете от клетката вдясно.","КАТЕГОРИЯ","ОЧАКВАН","ДЕЙСТВИТЕЛЕН","НАД/ПОД"]
[null,"Официално облекло",{"v":1300,"d":"1,300.00"},{"v":1300,"d":"1,300.00"},{"$f":"'Облекло-Тържество-Музика-Снимки'!$C52-'Облекло-Тържество-Музика-Снимки'!$D52","v":{"v":0,"d":"0.00"}}]
[null,"Допълнителни копия",{"v":25,"d":"25.00"},{"v":25,"d":"25.00"},{"$f":"'Облекло-Тържество-Музика-Снимки'!$C53-'Облекло-Тържество-Музика-Снимки'!$D53","v":{"v":0,"d":"0.00"}}]
[null,"Фотоалбуми",{"v":100,"d":"100.00"},{"v":100,"d":"100.00"},{"$f":"'Облекло-Тържество-Музика-Снимки'!$C54-'Облекло-Тържество-Музика-Снимки'!$D54","v":{"v":0,"d":"0.00"}}]
[null,"Видеозапис",{"v":200,"d":"200.00"},{"v":150,"d":"150.00"},{"$f":"'Облекло-Тържество-Музика-Снимки'!$C55-'Облекло-Тържество-Музика-Снимки'!$D55","v":{"v":50,"d":"50.00"}}]
[null,"Общо за снимки и видео",{"$f":"SUBTOTAL(109,СнимкиИВидео[ОЧАКВАН])","v":{"v":1625,"d":"1,625.00"}},{"$f":"SUBTOTAL(109,СнимкиИВидео[ДЕЙСТВИТЕЛЕН])","v":{"v":1575,"d":"1,575.00"}},{"$f":"SUBTOTAL(109,СнимкиИВидео[НАД/ПОД])","v":{"v":50,"d":"50.00"}}]

{"sheet":"Декорация-цветя-подаръци-път","index":3,"n_rows":48,"n_cols":5,"rows_kept":48,"merged":[[8,1,8,4],[9,1,9,4],[18,1,18,4],[27,1,27,4],[34,1,34,4]]}
["Въведете очакван и действителен разходи за всяка категория в съответните таблици в този работен лист. Сумата над или под се изчислява автоматично. Етикетът за \"Украса\" е в клетката вдясно. Полезни инструкции как да използвате този работен лист, можете да намерите в клетките в тази колона. Натиснете стрелката надолу, за да започнете.","Украса*"]
["Въведете разходите за украса, като изключите разходите за цветя, в таблицата, започвайки от клетката вдясно. Следващата инструкция е в клетка A11.","КАТЕГОРИЯ","ОЧАКВАН","ДЕЙСТВИТЕЛЕН","НАД/ПОД"]
[null,"Панделки на местата за сядане",{"v":0,"d":"0.00"},{"v":0,"d":"0.00"},{"$f":"'Декорация-цветя-подаръци-път'!$C3-'Декорация-цветя-подаръци-път'!$D3","v":{"v":0,"d":"0.00"}}]
[null,"Украса в центъра на масата",{"v":300,"d":"300.00"},{"v":320,"d":"320.00"},{"$f":"'Декорация-цветя-подаръци-път'!$C4-'Декорация-цветя-подаръци-път'!$D4","v":{"v":-20,"d":"-20.00 "}}]
[null,"Свещи",{"v":100,"d":"100.00"},{"v":75,"d":"75.00"},{"$f":"'Декорация-цветя-подаръци-път'!$C5-'Декорация-цветя-подаръци-път'!$D5","v":{"v":25,"d":"25.00"}}]
[null,"Осветление",{"v":100,"d":"100.00"},{"v":75,"d":"75.00"},{"$f":"'Декорация-цветя-подаръци-път'!$C6-'Декорация-цветя-подаръци-път'!$D6","v":{"v":25,"d":"25.00"}}]
[null,"Балони",{"v":200,"d":"200.00"},{"v":250,"d":"250.00"},{"$f":"'Декорация-цветя-подаръци-път'!$C7-'Декорация-цветя-подаръци-път'!$D7","v":{"v":-50,"d":"-50.00 "}}]
[null,"Общо за украса",{"$f":"SUBTOTAL(109,Украса[ОЧАКВАН])","v":{"v":700,"d":"700.00"}},{"$f":"SUBTOTAL(109,Украса[ДЕЙСТВИТЕЛЕН])","v":{"v":720,"d":"720.00"}},{"$f":"SUBTOTAL(109,Украса[НАД/ПОД])","v":{"v":-20,"d":"-20.00 "}}]
[null,"* Без цветята"]
[]
["Етикетът за \"Цветя\" е в клетката вдясно.","Цветя"]
["Въведете подробности в таблицата \"Цветя\", като започнете от клетката вдясно. Следващата инструкция е в клетка A20.","КАТЕГОРИЯ","ОЧАКВАН","ДЕЙСТВИТЕЛЕН","НАД/ПОД"]
[null,"Букети",{"v":500,"d":"500.00"},{"v":450,"d":"450.00"},{"$f":"'Декорация-цветя-подаръци-път'!$C13-'Декорация-цветя-подаръци-път'!$D13","v":{"v":50,"d":"50.00"}}]
[null,"Бутониери",{"v":0,"d":"0.00"},{"v":0,"d":"0.00"},{"$f":"'Декорация-цветя-подаръци-път'!$C14-'Декорация-цветя-подаръци-път'!$D14","v":{"v":0,"d":"0.00"}}]
[null,"Букетчета за ръка",{"v":0,"d":"0.00"},{"v":0,"d":"0.00"},{"$f":"'Декорация-цветя-подаръци-път'!$C15-'Декорация-цветя-подаръци-път'!$D15","v":{"v":0,"d":"0.00"}}]
[null,"Церемония",{"v":400,"d":"400.00"},{"v":400,"d":"400.00"},{"$f":"'Декорация-цветя-подаръци-път'!$C16-'Декорация-цветя-подаръци-път'!$D16","v":{"v":0,"d":"0.00"}}]
[null,"Тържество в ресторанта",{"v":0,"d":"0.00"},{"v":0,"d":"0.00"},{"$f":"'Декорация-цветя-подаръци-път'!$C17-'Декорация-цветя-подаръци-път'!$D17","v":{"v":0,"d":"0.00"}}]
[null,"Общо за цветя",{"$f":"SUBTOTAL(109,Цветя[ОЧАКВАН])","v":{"v":900,"d":"900.00"}},{"$f":"SUBTOTAL(109,Цветя[ДЕЙСТВИТЕЛЕН])","v":{"v":850,"d":"850.00"}},{"$f":"SUBTOTAL(109,Цветя[НАД/ПОД])","v":{"v":50,"d":"50.00"}}]
[]
["Етикетът за \"Подаръци\" е в клетката вдясно.","Подаръци"]
["Въведете подробности в таблицата \"Подаръци\", като започнете от клетката вдясно. Следващата инструкция е в клетка A29.","КАТЕГОРИЯ","ОЧАКВАН","ДЕЙСТВИТЕЛЕН","НАД/ПОД"]
[null,"Шаферки",{"v":1000,"d":"1,000.00"},{"v":400,"d":"400.00"},{"$f":"'Декорация-цветя-подаръци-път'!$C22-'Декорация-цветя-подаръци-път'!$D22","v":{"v":600,"d":"600.00"}}]
[null,"Булка",{"v":150,"d":"150.00"},{"v":200,"d":"200.00"},{"$f":"'Декорация-цветя-подаръци-път'!$C23-'Декорация-цветя-подаръци-път'!$D23","v":{"v":-50,"d":"-50.00 "}}]
[null,"Младоженец",{"v":150,"d":"150.00"},{"v":200,"d":"200.00"},{"$f":"'Декорация-цветя-подаръци-път'!$C24-'Декорация-цветя-подаръци-път'!$D24","v":{"v":-50,"d":"-50.00 "}}]
[null,"Родители",{"v":25,"d":"25.00"},{"v":25,"d":"25.00"},{"$f":"'Декорация-цветя-подаръци-път'!$C25-'Декорация-цветя-подаръци-път'!$D25","v":{"v":0,"d":"0.00"}}]
[null,"Четящи/други участници",{"v":20,"d":"20.00"},{"v":250,"d":"250.00"},{"$f":"'Декорация-цветя-подаръци-път'!$C26-'Декорация-цветя-подаръци-път'!$D26","v":{"v":-230,"d":"-230.00 "}}]
[null,"Общо за подаръци",{"$f":"SUBTOTAL(109,Подаръци[ОЧАКВАН])","v":{"v":1345,"d":"1,345.00"}},{"$f":"SUBTOTAL(109,Подаръци[ДЕЙСТВИТЕЛЕН])","v":{"v":1075,"d":"1,075.00"}},{"$f":"SUBTOTAL(109,Подаръци[НАД/ПОД])","v":{"v":270,"d":"270.00"}}]
[]
["Етикетът за \"Пътувания или транспорт\" е в клетката вдясно.","Пътувания/транспорт"]
["Въведете подробности в таблицата \"Пътувания\", като започнете от клетката вдясно. Следващата инструкция е в клетка A36.","КАТЕГОРИЯ","ОЧАКВАН","ДЕЙСТВИТЕЛЕН","НАД/ПОД"]
[null,"Лимузини/колички",{"v":100,"d":"100.00"},{"v":125,"d":"125.00"},{"$f":"'Декорация-цветя-подаръци-път'!$C31-'Декорация-цветя-подаръци-път'!$D31","v":{"v":-25,"d":"-25.00 "}}]
[null,"Паркинг",{"v":0,"d":"0.00"},{"v":40,"d":"40.00"},{"$f":"'Декорация-цветя-подаръци-път'!$C32-'Декорация-цветя-подаръци-път'!$D32","v":{"v":-40,"d":"-40.00 "}}]
[null,"Такси",{"v":0,"d":"0.00"},{"v":0,"d":"0.00"},{"$f":"'Декорация-цветя-подаръци-път'!$C33-'Декорация-цветя-подаръци-път'!$D33","v":{"v":0,"d":"0.00"}}]
[null,"Общо за пътувания/транспорт",{"$f":"SUBTOTAL(109,Пътувания[ОЧАКВАН])","v":{"v":100,"d":"100.00"}},{"$f":"SUBTOTAL(109,Пътувания[ДЕЙСТВИТЕЛЕН])","v":{"v":165,"d":"165.00"}},{"$f":"SUBTOTAL(109,Пътувания[НАД/ПОД])","v":{"v":-65,"d":"-65.00 "}}]
[]
["Етикетът за \"Други разходи\" е в клетката вдясно.","Други разходи"]
["Въведете подробните данни в таблицата \"Други разходи\", като започнете от клетката отдясно.","КАТЕГОРИЯ","ОЧАКВАН","ДЕЙСТВИТЕЛЕН","НАД/ПОД"]
[null,"Свещеник",{"v":0,"d":"0.00"},{"v":0,"d":"0.00"},{"$f":"'Декорация-цветя-подаръци-път'!$C38-'Декорация-цветя-подаръци-път'!$D38","v":{"v":0,"d":"0.00"}}]
[null,"Такса за църквата/мястото на церемонията",{"v":40,"d":"40.00"},{"v":55,"d":"55.00"},{"$f":"'Декорация-цветя-подаръци-път'!$C39-'Декорация-цветя-подаръци-път'!$D39","v":{"v":-15,"d":"-15.00 "}}]
[null,"Сватбен координатор",{"v":0,"d":"0.00"},{"v":0,"d":"0.00"},{"$f":"'Декорация-цветя-подаръци-път'!$C40-'Декорация-цветя-подаръци-път'!$D40","v":{"v":0,"d":"0.00"}}]
[null,"Репетиция за вечерята",{"v":450,"d":"450.00"},{"v":450,"d":"450.00"},{"$f":"'Декорация-цветя-подаръци-път'!$C41-'Декорация-цветя-подаръци-път'!$D41","v":{"v":0,"d":"0.00"}}]
[null,"Тържество за годежа",{"v":20,"d":"20.00"},{"v":50,"d":"50.00"},{"$f":"'Декорация-цветя-подаръци-път'!$C42-'Декорация-цветя-подаръци-път'!$D42","v":{"v":-30,"d":"-30.00 "}}]
[null,"Подаръци",{"v":30,"d":"30.00"},{"v":20,"d":"20.00"},{"$f":"'Декорация-цветя-подаръци-път'!$C43-'Декорация-цветя-подаръци-път'!$D43","v":{"v":10,"d":"10.00"}}]
[null,"Насрочено посещение в сватбения салон",{"v":45,"d":"45.00"},{"v":46,"d":"46.00"},{"$f":"'Декорация-цветя-подаръци-път'!$C44-'Декорация-цветя-подаръци-път'!$D44","v":{"v":-1,"d":"-1.00 "}}]
[null,"Ергенско/моминско парти",{"v":0,"d":"0.00"},{"v":0,"d":"0.00"},{"$f":"'Декорация-цветя-подаръци-път'!$C45-'Декорация-цветя-подаръци-път'!$D45","v":{"v":0,"d":"0.00"}}]
[null,"Късен обяд",{"v":300,"d":"300.00"},{"v":400,"d":"400.00"},{"$f":"'Декорация-цветя-подаръци-път'!$C46-'Декорация-цветя-подаръци-път'!$D46","v":{"v":-100,"d":"-100.00 "}}]
[null,"Хотелски стаи",{"v":0,"d":"0.00"},{"v":0,"d":"0.00"},{"$f":"'Декорация-цветя-подаръци-път'!$C47-'Декорация-цветя-подаръци-път'!$D47","v":{"v":0,"d":"0.00"}}]
[null,"Общо за други разходи",{"$f":"SUBTOTAL(109,ДругиРазходи[ОЧАКВАН])","v":{"v":885,"d":"885.00"}},{"$f":"SUBTOTAL(109,ДругиРазходи[ДЕЙСТВИТЕЛЕН])","v":{"v":1021,"d":"1,021.00"}},{"$f":"SUBTOTAL(109,ДругиРазходи[НАД/ПОД])","v":{"v":-136,"d":"-136.00 "}}]